fUSD/lending_fUSD_20250823
["ID","MTS","AMOUNT","RATE_DAILY","PERIOD"]
[380957768,1755912755562,-11228.44,0.000163,2]
[380957769,1755912755571,-400.0,0.00016337,2]
[380957770,1755912755580,-200.0,0.0001634,2]
[380957771,1755912755590,-500.0,0.00016357,2]
[380957772,1755912755599,-500.0,0.00016359,2]
[380957773,1755912755609,-500.0,0.00016359,2]
[380957774,1755912755618,-500.0,0.00016359,2]
[380957775,1755912755628,-500.0,0.00016359,2]
[380957776,1755912755637,-500.0,0.00016359,2]
[380957777,1755912755647,-500.0,0.00016359,2]
[380957778,1755912755657,-500.0,0.00016359,2]
[380957779,1755912755666,-500.0,0.00016359,2]
[380957780,1755912755676,-151.0,0.00016368,2]
[380957781,1755912755685,-151.0,0.00016368,2]
[380957782,1755912755695,-150.0,0.00016371,2]
[380957783,1755912755704,-150.0,0.00016371,2]
[380957784,1755912755714,-90000.0,0.000164,2]
[380957785,1755912755723,-1093.0,0.000164,2]
[380957786,1755912755732,-197067.19,0.000164,2]
[380957787,1755912755743,-151.0,0.00016402,2]
[380957788,1755912755753,-151.0,0.00016402,2]
[380957789,1755912755762,-549.67,0.0001642,2]
[380957790,1755912755772,-151.0,0.00016438,2]
[380957791,1755912755781,-151.0,0.00016438,2]
[380957792,1755912755791,-733.0,0.00016438,2]
[380957793,1755912755801,-204.01782426,0.00016438,2]
[380957794,1755912755811,-498.05435818,0.00016438,2]
[380957795,1755912755821,-500.0,0.00016438,2]
[380957796,1755912755830,-1367.0,0.00016438,2]
[380957797,1755912755840,-250.0,0.00016438,2]
[380957798,1755912755850,-500.0,0.00016438,2]
[380957799,1755912755859,-367.51839848,0.00016438,2]
[380957800,1755912755869,-300.0,0.00016438,2]
[380957801,1755912755879,-500.0,0.00016438,2]
[380957802,1755912755888,-500.0,0.00016438,2]
[380957803,1755912755897,-500.0,0.00016438,2]
[380957804,1755912755906,-500.0,0.00016438,2]
[380957805,1755912755916,-2066.0,0.00016438,2]
[380957806,1755912755925,-1471.92,0.00016438,2]
[380957807,1755912755934,-400.0,0.00016438,2]
[380957808,1755912755944,-400.0,0.00016438,2]
[380957809,1755912755953,-400.0,0.00016438,2]
[380957810,1755912755962,-346.58895659,0.00016438,2]
[380957811,1755912755972,-404.24,0.00016438,2]
[380957812,1755912755983,-400.0,0.00016438,2]
[380957813,1755912755993,-400.0,0.00016438,2]
[380957814,1755912756003,-957.1,0.00016438,2]
[380957815,1755912756012,-160.10234931,0.00016438,2]
[380957816,1755912756022,-500.5,0.00016438,2]
[380957817,1755912756031,-400.0,0.00016438,2]
[380957818,1755912756041,-630.13,0.00016438,2]
[380957819,1755912756050,-484.29,0.00016438,2]
[380957820,1755912756059,-691.2,0.00016438,2]
[380957821,1755912756069,-400.0,0.00016438,2]
[380957822,1755912756079,-564.0,0.00016438,2]
[380957823,1755912756087,-922.66,0.00016438,2]
[380957824,1755912756097,-1309.75,0.00016438,2]
[380957825,1755912756106,-400.0,0.00016438,2]
[380957826,1755912756115,-400.0,0.00016438,2]
[380957827,1755912756125,-410.64,0.00016438,2]
[380957828,1755912756134,-400.0,0.00016438,2]
[380957829,1755912756144,-400.0,0.00016438,2]
[380957830,1755912756153,-400.0,0.00016438,2]
[380957831,1755912756163,-400.0,0.00016438,2]
[380957832,1755912756172,-400.0,0.00016438,2]
[380957833,1755912756182,-814.35,0.00016438,2]
[380957834,1755912756192,-703.72,0.00016438,2]
[380957835,1755912756202,-400.0,0.00016438,2]
[380957836,1755912756211,-400.0,0.00016438,2]
[380957837,1755912756221,-400.0,0.00016438,2]
[380957838,1755912756231,-400.0,0.00016438,2]
[380957839,1755912756241,-416.84,0.00016438,2]
[380957840,1755912756250,-552.81,0.00016438,2]
[380957841,1755912756259,-565.22,0.00016438,2]
[380957842,1755912756268,-400.0,0.00016438,2]
[380957843,1755912756278,-457.37,0.00016438,2]
[380957844,1755912756288,-459.16,0.00016438,2]
[380957845,1755912756297,-400.0,0.00016438,2]
[380957846,1755912756307,-400.0,0.00016438,2]
[380957847,1755912756317,-454.18,0.00016438,2]
[380957848,1755912756326,-408.41,0.00016438,2]
[380957849,1755912756336,-429.23,0.00016438,2]
[380957850,1755912756346,-230.93975664,0.00016438,2]
[380957851,1755912756355,-400.0,0.00016438,2]
[380957852,1755912756364,-400.0,0.00016438,2]
[380957853,1755912756375,-400.0,0.00016438,2]
[380957854,1755912756384,-582.37,0.00016438,2]
[380957855,1755912756398,-400.0,0.00016438,2]
[380957856,1755912756407,-400.0,0.00016438,2]
[380957857,1755912756417,-152.98306378,0.00016438,2]
[380957858,1755912756426,-400.0,0.00016438,2]
[380957859,1755912756436,-400.0,0.00016438,2]
[380957860,1755912756446,-759.88,0.00016438,2]
[380957861,1755912756455,-400.0,0.00016438,2]
[380957862,1755912756464,-591.39,0.00016438,2]
[380957863,1755912756473,-413.97,0.00016438,2]
[380957864,1755912756482,-649.74,0.00016438,2]
[380957865,1755912756491,-446.38,0.00016438,2]
[380957866,1755912756500,-506.47,0.00016438,2]
[380957867,1755912756510,-715.02,0.00016438,2]
[380957868,1755912756519,-400.0,0.00016438,2]
[380957869,1755912756529,-537.25,0.00016438,2]
[380957870,1755912756539,-400.0,0.00016438,2]
[380957871,1755912756549,-512.45,0.00016438,2]
[380957872,1755912756559,-527.41,0.00016438,2]
[380957873,1755912756568,-400.0,0.00016438,2]
[380957874,1755912756578,-521.1,0.00016438,2]
[380957875,1755912756587,-400.0,0.00016438,2]
[380957876,1755912756596,-446.92,0.00016438,2]
[380957877,1755912756606,-449.44,0.00016438,2]
[380957878,1755912756616,-400.0,0.00016438,2]
[380957879,1755912756625,-675.1,0.00016438,2]
[380957880,1755912756635,-400.0,0.00016438,2]
[380957881,1755912756644,-400.0,0.00016438,2]
[380957882,1755912756654,-609.3,0.00016438,2]
[380957883,1755912756663,-654.03,0.00016438,2]
[380957884,1755912756672,-400.0,0.00016438,2]
[380957885,1755912756682,-400.0,0.00016438,2]
[380957886,1755912756691,-661.96,0.00016438,2]
[380957887,1755912756701,-568.98,0.00016438,2]
[380957888,1755912756710,-400.0,0.00016438,2]
[380957889,1755912756720,-400.0,0.00016438,2]
[380957890,1755912756729,-400.0,0.00016438,2]
[380957891,1755912756739,-709.86,0.00016438,2]
[380957892,1755912756749,-400.0,0.00016438,2]
[380957893,1755912756759,-400.0,0.00016438,2]
[380957894,1755912756769,-812.84,0.00016438,2]
[380957895,1755912756779,-437.4,0.00016438,2]
[380957896,1755912756788,-586.38,0.00016438,2]
[380957897,1755912756798,-442.27,0.00016438,2]
[380957898,1755912756808,-562.61,0.00016438,2]
[380957899,1755912756817,-400.0,0.00016438,2]
[380957900,1755912756827,-400.0,0.00016438,2]
[380957901,1755912756837,-845.65,0.00016438,2]
[380957902,1755912756846,-441.24,0.00016438,2]
[380957903,1755912756855,-529.98,0.00016438,2]
[380957904,1755912756865,-400.0,0.00016438,2]
[380957905,1755912756874,-400.0,0.00016438,2]
[380957906,1755912756883,-570.39,0.00016438,2]
[380957907,1755912756893,-400.0,0.00016438,2]
[380957908,1755912756903,-421.77,0.00016438,2]
[380957909,1755912756911,-400.0,0.00016438,2]
[380957910,1755912756924,-400.0,0.00016438,2]
[380957911,1755912756933,-400.0,0.00016438,2]
[380957912,1755912756943,-400.0,0.00016438,2]
[380957913,1755912756953,-400.0,0.00016438,2]
[380957914,1755912756962,-464.48,0.00016438,2]
[380957915,1755912756972,-400.0,0.00016438,2]
[380957916,1755912756981,-400.0,0.00016438,2]
[380957917,1755912756991,-415.36,0.00016438,2]
[380957918,1755912757000,-530.98,0.00016438,2]
[380957919,1755912757010,-400.0,0.00016438,2]
[380957920,1755912757019,-512.43,0.00016438,2]
[380957921,1755912757029,-516.79,0.00016438,2]
[380957922,1755912757040,-400.0,0.00016438,2]
[380957923,1755912757050,-400.0,0.00016438,2]
[380957924,1755912757059,-400.0,0.00016438,2]
[380957925,1755912757070,-400.0,0.00016438,2]
[380957926,1755912757080,-409.44,0.00016438,2]
[380957927,1755912757089,-400.0,0.00016438,2]
[380957928,1755912757099,-285.56000002,0.00016438,2]
[380957929,1755912757108,-400.0,0.00016438,2]
[380957930,1755912757117,-499.57,0.00016438,2]
[380957931,1755912757127,-577.94,0.00016438,2]
[380957932,1755912757137,-400.0,0.00016438,2]
[380957933,1755912757147,-476.9,0.00016438,2]
[380957934,1755912757156,-400.0,0.00016438,2]
[380957935,1755912757166,-637.7,0.00016438,2]
[380957936,1755912757175,-423.83,0.00016438,2]
[380957937,1755912757185,-400.0,0.00016438,2]
[380957938,1755912757195,-873.47,0.00016438,2]
[380957939,1755912757204,-459.29,0.00016438,2]
[380957940,1755912757214,-571.62,0.00016438,2]
[380957941,1755912757223,-409.95,0.00016438,2]
[380957942,1755912757233,-1704.41,0.00016438,2]
[380957943,1755912757243,-400.0,0.00016438,2]
[380957944,1755912757253,-549.98,0.00016438,2]
[380957945,1755912757263,-400.0,0.00016438,2]
[380957946,1755912757273,-400.0,0.00016438,2]
[380957947,1755912757282,-400.0,0.00016438,2]
[380957948,1755912757291,-531.47,0.00016438,2]
[380957949,1755912757301,-456.18,0.00016438,2]
[380957950,1755912757531,-400.0,0.00016438,2]
[380957951,1755912757541,-400.0,0.00016438,2]
[380957952,1755912757551,-400.0,0.00016438,2]
[380957953,1755912757560,-890.29,0.00016438,2]
[380957954,1755912757570,-406.1,0.00016438,2]
[380957955,1755912757579,-400.0,0.00016438,2]
[380957956,1755912757590,-400.0,0.00016438,2]
[380957957,1755912757599,-400.0,0.00016438,2]
[380957958,1755912757609,-421.32,0.00016438,2]
[380957959,1755912757618,-400.0,0.00016438,2]
[380957960,1755912757628,-478.43,0.00016438,2]
[380957961,1755912757637,-400.0,0.00016438,2]
[380957962,1755912757646,-487.04,0.00016438,2]
[380957963,1755912757655,-595.85,0.00016438,2]
[380957964,1755912757664,-542.43,0.00016438,2]
[380957965,1755912757673,-510.81,0.00016438,2]
[380957966,1755912757683,-451.04,0.00016438,2]
[380957967,1755912757692,-400.0,0.00016438,2]
[380957968,1755912757702,-477.02,0.00016438,2]
[380957969,1755912757711,-667.8,0.00016438,2]
[380957970,1755912757720,-400.0,0.00016438,2]
[380957971,1755912757730,-400.0,0.00016438,2]
[380957972,1755912757740,-754.76,0.00016438,2]
[380957973,1755912757750,-400.0,0.00016438,2]
[380957974,1755912757760,-1030.1,0.00016438,2]
[380957975,1755912757769,-510.89,0.00016438,2]
[380957976,1755912757779,-436.99,0.00016438,2]
[380957977,1755912757788,-657.25,0.00016438,2]
[380957978,1755912757797,-400.0,0.00016438,2]
[380957979,1755912757807,-442.28683443,0.00016438,2]
[380957980,1755912757816,-417.45,0.00016438,2]
[380957981,1755912757825,-400.0,0.00016438,2]
[380957982,1755912757835,-400.0,0.00016438,2]
[380957983,1755912757844,-1067.81,0.00016438,2]
[380957984,1755912757854,-400.0,0.00016438,2]
[380957985,1755912757863,-400.0,0.00016438,2]
[380957986,1755912757872,-578.42,0.00016438,2]
[380957987,1755912757882,-786.01,0.00016438,2]
[380957988,1755912757891,-400.0,0.00016438,2]
[380957989,1755912757901,-1145.67,0.00016438,2]
[380957990,1755912757910,-624.95,0.00016438,2]
[380957991,1755912757920,-400.0,0.00016438,2]
[380957992,1755912757929,-439.98,0.00016438,2]
[380957993,1755912757939,-400.0,0.00016438,2]
[380957994,1755912757948,-734.24,0.00016438,2]
[380957995,1755912757957,-400.0,0.00016438,2]
[380957996,1755912757967,-716.27,0.00016438,2]
[380957997,1755912757976,-400.0,0.00016438,2]
[380957998,1755912757986,-400.0,0.00016438,2]
[380957999,1755912757998,-677.21,0.00016438,2]
[380958000,1755912758008,-400.0,0.00016438,2]
[380958001,1755912758018,-400.0,0.00016438,2]
[380958002,1755912758027,-400.0,0.00016438,2]
[380958003,1755912758038,-503.77,0.00016438,2]
[380958004,1755912758048,-651.98,0.00016438,2]
[380958005,1755912758057,-831.56,0.00016438,2]
[380958006,1755912758067,-742.35,0.00016438,2]
[380958007,1755912758076,-541.87,0.00016438,2]
[380958008,1755912758085,-400.0,0.00016438,2]
[380958009,1755912758095,-400.0,0.00016438,2]
[380958010,1755912758104,-400.0,0.00016438,2]
[380958011,1755912758114,-462.17,0.00016438,2]
[380958012,1755912758124,-400.0,0.00016438,2]
[380958013,1755912758134,-422.39,0.00016438,2]
[380958014,1755912758144,-400.0,0.00016438,2]
[380958015,1755912758153,-400.0,0.00016438,2]
[380958016,1755912758163,-535.7,0.00016438,2]
[380958017,1755912758173,-410.83547033,0.00016438,2]
[380958018,1755912758183,-601.7,0.00016438,2]
[380958019,1755912758193,-598.88,0.00016438,2]
[380958020,1755912758203,-729.0,0.00016438,2]
[380958021,1755912758212,-400.0,0.00016438,2]
[380958022,1755912758222,-400.0,0.00016438,2]
[380958023,1755912758232,-482.06,0.00016438,2]
[380958024,1755912758243,-400.0,0.00016438,2]
[380958025,1755912758253,-648.16,0.00016438,2]
[380958026,1755912758263,-560.98,0.00016438,2]
[380958027,1755912758272,-400.0,0.00016438,2]
[380958028,1755912758281,-581.45,0.00016438,2]
[380958029,1755912758291,-485.12,0.00016438,2]
[380958030,1755912758302,-400.0,0.00016438,2]
[380958031,1755912758312,-463.13,0.00016438,2]
[380958032,1755912758322,-607.66,0.00016438,2]
[380958033,1755912758331,-400.0,0.00016438,2]
[380958034,1755912758341,-174.96208595,0.00016438,2]
[380958035,1755912758351,-483.72,0.00016438,2]
[380958036,1755912758362,-506.32,0.00016438,2]
[380958037,1755912758371,-657.0,0.00016438,2]
[380958038,1755912758382,-460.21,0.00016438,2]
[380958039,1755912758393,-664.59,0.00016438,2]
[380958040,1755912758404,-518.18,0.00016438,2]
[380958041,1755912758414,-548.04,0.00016438,2]
[380958042,1755912758423,-623.23,0.00016438,2]
[380958043,1755912758433,-490.94,0.00016438,2]
[380958044,1755912758443,-400.0,0.00016438,2]
[380958045,1755912758453,-407.86,0.00016438,2]
[380958046,1755912758462,-538.71,0.00016438,2]
[380958047,1755912758471,-492.11,0.00016438,2]
[380958048,1755912758481,-585.32,0.00016438,2]
[380958049,1755912758492,-704.8,0.00016438,2]
[380958050,1755912758502,-419.51,0.00016438,2]
[380958051,1755912758511,-536.25,0.00016438,2]
[380958052,1755912758523,-400.0,0.00016438,2]
[380958053,1755912758533,-416.08,0.00016438,2]
[380958054,1755912758542,-685.75,0.00016438,2]
[380958055,1755912758552,-552.15,0.00016438,2]
[380958056,1755912758567,-400.0,0.00016438,2]
[380958057,1755912758579,-400.0,0.00016438,2]
[380958058,1755912758589,-1265.94,0.00016438,2]
[380958059,1755912758598,-475.58,0.00016438,2]
[380958060,1755912758607,-400.0,0.00016438,2]
[380958061,1755912758617,-400.0,0.00016438,2]
[380958062,1755912758626,-433.85,0.00016438,2]
[380958063,1755912758637,-400.0,0.00016438,2]
[380958064,1755912758647,-400.0,0.00016438,2]
[380958065,1755912758656,-400.0,0.00016438,2]
[380958066,1755912758665,-400.0,0.00016438,2]
[380958067,1755912758675,-428.36,0.00016438,2]
[380958068,1755912758685,-427.61,0.00016438,2]
[380958069,1755912758694,-543.91,0.00016438,2]
[380958070,1755912758704,-400.0,0.00016438,2]
[380958071,1755912758714,-763.66,0.00016438,2]
[380958072,1755912758724,-400.0,0.00016438,2]
[380958073,1755912758733,-400.0,0.00016438,2]
[380958074,1755912758746,-400.0,0.00016438,2]
[380958075,1755912758755,-400.0,0.00016438,2]
[380958076,1755912758764,-280.15045055,0.00016438,2]
[380958077,1755912758774,-482.08,0.00016438,2]
[380958078,1755912758783,-552.38,0.00016438,2]
[380958079,1755912758793,-793.95,0.00016438,2]
[380958080,1755912758803,-400.0,0.00016438,2]
[380958081,1755912758813,-400.0,0.00016438,2]
[380958082,1755912758822,-400.0,0.00016438,2]
[380958083,1755912758831,-476.99,0.00016438,2]
[380958084,1755912758841,-400.0,0.00016438,2]
[380958085,1755912758850,-400.0,0.00016438,2]
[380958086,1755912758860,-400.0,0.00016438,2]
[380958087,1755912758870,-772.08,0.00016438,2]
[380958088,1755912758879,-607.86,0.00016438,2]
[380958089,1755912758889,-400.0,0.00016438,2]
[380958090,1755912758899,-577.68,0.00016438,2]
[380958091,1755912758909,-446.17,0.00016438,2]
[380958092,1755912758919,-499.75,0.00016438,2]
[380958093,1755912758929,-543.86,0.00016438,2]
[380958094,1755912758938,-707.33,0.00016438,2]
[380958095,1755912758948,-475.34,0.00016438,2]
[380958096,1755912758957,-602.1,0.00016438,2]
[380958097,1755912758967,-400.0,0.00016438,2]
[380958098,1755912758976,-496.62,0.00016438,2]
[380958099,1755912758986,-480.32,0.00016438,2]
[380958100,1755912758997,-752.86,0.00016438,2]
[380958101,1755912759006,-400.0,0.00016438,2]
[380958102,1755912759015,-400.0,0.00016438,2]
[380958103,1755912759025,-400.0,0.00016438,2]
[380958104,1755912759034,-633.62,0.00016438,2]
[380958105,1755912759044,-400.0,0.00016438,2]
[380958106,1755912759054,-400.0,0.00016438,2]
[380958107,1755912759064,-400.0,0.00016438,2]
[380958108,1755912759074,-490.09,0.00016438,2]
[380958109,1755912759083,-400.0,0.00016438,2]
[380958110,1755912759094,-560.58,0.00016438,2]
[380958111,1755912759105,-614.22,0.00016438,2]
[380958112,1755912759116,-400.0,0.00016438,2]
[380958113,1755912759126,-428.79,0.00016438,2]
[380958114,1755912759136,-416.01,0.00016438,2]
[380958115,1755912759146,-400.0,0.00016438,2]
[380958116,1755912759156,-425.3,0.00016438,2]
[380958117,1755912759166,-400.0,0.00016438,2]
[380958118,1755912759176,-400.0,0.00016438,2]
[380958119,1755912759185,-400.0,0.00016438,2]
[380958120,1755912759195,-508.68,0.00016438,2]
[380958121,1755912759204,-314.1100173,0.00016438,2]
[380958122,1755912759214,-535.36,0.00016438,2]
[380958123,1755912759224,-193.17723,0.00016438,2]
[380958124,1755912759233,-470.91,0.00016438,2]
[380958125,1755912759243,-500.0,0.00016438,2]
[380958126,1755912759252,-418.5,0.00016438,2]
[380958127,1755912759261,-400.0,0.00016438,2]
[380958128,1755912759271,-400.0,0.00016438,2]
[380958129,1755912759281,-747.8,0.00016438,2]
[380958130,1755912759290,-400.0,0.00016438,2]
[380958131,1755912759299,-433.94,0.00016438,2]
[380958132,1755912759309,-400.0,0.00016438,2]
[380958133,1755912759318,-400.0,0.00016438,2]
[380958134,1755912759328,-400.0,0.00016438,2]
[380958135,1755912759338,-472.48,0.00016438,2]
[380958136,1755912759348,-400.0,0.00016438,2]
[380958137,1755912759358,-400.0,0.00016438,2]
[380958138,1755912759368,-400.0,0.00016438,2]
[380958139,1755912759377,-855.010025,0.00016438,2]
[380958140,1755912759387,-400.0,0.00016438,2]
[380958141,1755912759400,-400.0,0.00016438,2]
[380958142,1755912759410,-631.75,0.00016438,2]
[380958143,1755912759419,-400.0,0.00016438,2]
[380958144,1755912759429,-479.25,0.00016438,2]
[380958145,1755912759438,-400.0,0.00016438,2]
[380958146,1755912759448,-737.35,0.00016438,2]
[380958147,1755912759458,-473.06,0.00016438,2]
[380958148,1755912759467,-400.0,0.00016438,2]
[380958149,1755912759477,-400.0,0.00016438,2]
[380958150,1755912759486,-400.0,0.00016438,2]
[380958151,1755912759496,-464.53,0.00016438,2]
[380958152,1755912759505,-400.0,0.00016438,2]
[380958153,1755912759515,-451.38,0.00016438,2]
[380958154,1755912759524,-605.41,0.00016438,2]
[380958155,1755912759534,-763.68,0.00016438,2]
[380958156,1755912759544,-400.0,0.00016438,2]
[380958157,1755912759553,-400.0,0.00016438,2]
[380958158,1755912759563,-400.0,0.00016438,2]
[380958159,1755912759572,-442.86,0.00016438,2]
[380958160,1755912759582,-400.0,0.00016438,2]
[380958161,1755912759591,-400.0,0.00016438,2]
[380958162,1755912759601,-437.52,0.00016438,2]
[380958163,1755912759611,-496.31,0.00016438,2]
[380958164,1755912759620,-400.0,0.00016438,2]
[380958165,1755912759630,-166.8265944,0.00016438,2]
[380958166,1755912759639,-400.0,0.00016438,2]
[380958167,1755912759655,-1076.1,0.00016438,2]
[380958168,1755912759673,-517.63,0.00016438,2]
[380958169,1755912759689,-400.0,0.00016438,2]
[380958170,1755912759700,-531.82,0.00016438,2]
[380958171,1755912759709,-400.0,0.00016438,2]
[380958172,1755912759719,-400.0,0.00016438,2]
[380958173,1755912759728,-599.57,0.00016438,2]
[380958174,1755912759738,-538.24,0.00016438,2]
[380958175,1755912759749,-400.0,0.00016438,2]
[380958176,1755912759759,-578.64,0.00016438,2]
[380958177,1755912759771,-400.0,0.00016438,2]
[380958178,1755912759780,-481.87,0.00016438,2]
[380958179,1755912759789,-876.45,0.00016438,2]
[380958180,1755912759798,-596.46,0.00016438,2]
[380958181,1755912759808,-400.0,0.00016438,2]
[380958182,1755912759818,-750.69,0.00016438,2]
[380958183,1755912759828,-400.0,0.00016438,2]
[380958184,1755912759837,-483.91,0.00016438,2]
[380958185,1755912759846,-429.94,0.00016438,2]
[380958186,1755912759856,-2560.03,0.00016438,2]
[380958187,1755912759866,-583.44,0.00016438,2]
[380958188,1755912759876,-400.0,0.00016438,2]
[380958189,1755912759885,-400.0,0.00016438,2]
[380958190,1755912759894,-511.98,0.00016438,2]
[380958191,1755912759904,-412.65,0.00016438,2]
[380958192,1755912759913,-400.0,0.00016438,2]
[380958193,1755912759922,-714.55,0.00016438,2]
[380958194,1755912759931,-400.0,0.00016438,2]
[380958195,1755912759940,-466.47,0.00016438,2]
[380958196,1755912759950,-400.0,0.00016438,2]
[380958197,1755912759959,-789.4,0.00016438,2]
[380958198,1755912759969,-483.0,0.00016438,2]
[380958199,1755912760069,-638.96,0.00016438,2]
[380958200,1755912760078,-626.45,0.00016438,2]
[380958201,1755912760088,-411.07,0.00016438,2]
[380958202,1755912760098,-400.0,0.00016438,2]
[380958203,1755912760109,-459.86,0.00016438,2]
[380958204,1755912760121,-590.56,0.00016438,2]
[380958205,1755912760131,-7170.55,0.00016438,2]
[380958206,1755912760140,-400.0,0.00016438,2]
[380958207,1755912760150,-798.6,0.00016438,2]
[380958208,1755912760160,-568.83,0.00016438,2]
[380958209,1755912760169,-489.74,0.00016438,2]
[380958210,1755912760179,-568.83,0.00016438,2]
[380958211,1755912760189,-568.83,0.00016438,2]
[380958212,1755912760198,-568.83,0.00016438,2]
[380958213,1755912760208,-568.83,0.00016438,2]
[380958214,1755912760218,-568.83,0.00016438,2]
[380958215,1755912760227,-755.36,0.00016438,2]
[380958216,1755912760237,-568.83,0.00016438,2]
[380958217,1755912760248,-414.4,0.00016438,2]
[380958218,1755912760257,-568.83,0.00016438,2]
[380958219,1755912760266,-568.83,0.00016438,2]
[380958220,1755912760276,-568.83,0.00016438,2]
[380958221,1755912760286,-568.83,0.00016438,2]
[380958222,1755912760295,-556.35,0.00016438,2]
[380958223,1755912760304,-2114.53,0.00016438,2]
[380958224,1755912760314,-400.0,0.00016438,2]
[380958225,1755912760323,-522.88,0.00016438,2]
[380958226,1755912760333,-400.0,0.00016438,2]
[380958227,1755912760343,-400.0,0.00016438,2]
[380958228,1755912760364,-400.0,0.00016438,2]
[380958229,1755912760374,-400.0,0.00016438,2]
[380958230,1755912760383,-2594.59,0.00016438,2]
[380958231,1755912760397,-446.5,0.00016438,2]
[380958232,1755912760406,-529.92,0.00016438,2]
[380958233,1755912760416,-705.67,0.00016438,2]
[380958234,1755912760425,-896.87,0.00016438,2]
[380958235,1755912760435,-400.0,0.00016438,2]
[380958236,1755912760444,-1094.77,0.00016438,2]
[380958237,1755912760453,-741.74,0.00016438,2]
[380958238,1755912760463,-869.76,0.00016438,2]
[380958239,1755912760473,-418.69,0.00016438,2]
[380958240,1755912760482,-400.0,0.00016438,2]
[380958241,1755912760493,-483.96892,0.00016438,2]
[380958242,1755912760503,-437.77,0.00016438,2]
[380958243,1755912760512,-562.13,0.00016438,2]
[380958244,1755912760522,-541.27,0.00016438,2]
[380958245,1755912760531,-1048.91,0.00016438,2]
[380958246,1755912760541,-723.99,0.00016438,2]
[380958247,1755912760550,-400.0,0.00016438,2]
[380958248,1755912760560,-400.0,0.00016438,2]
[380958249,1755912760570,-400.0,0.00016438,2]
[380958250,1755912760579,-963.36,0.00016438,2]
[380958251,1755912760589,-614.11,0.00016438,2]
[380958252,1755912760598,-4903.23,0.00016438,2]
[380958253,1755912760607,-685.08,0.00016438,2]
[380958254,1755912760617,-400.0,0.00016438,2]
[380958255,1755912760626,-508.77,0.00016438,2]
[380958256,1755912760636,-530.85,0.00016438,2]
[380958257,1755912760645,-956.53,0.00016438,2]
[380958258,1755912760654,-400.0,0.00016438,2]
[380958259,1755912760663,-400.0,0.00016438,2]
[380958260,1755912760673,-690.94,0.00016438,2]
[380958261,1755912760683,-781.78,0.00016438,2]
[380958262,1755912760692,-516.0,0.00016438,2]
[380958263,1755912760701,-407.82,0.00016438,2]
[380958264,1755912760711,-166.839125,0.00016438,2]
[380958265,1755912760721,-400.0,0.00016438,2]
[380958266,1755912760731,-400.0,0.00016438,2]
[380958267,1755912760740,-573.49,0.00016438,2]